[Event "*** Titled Tuesday Blitz"]
[Site "Chess.com"]
[Date "2020.02.04"]
[Round "7"]
[White "Korona_91"]
[Black "Kirill_Kopenkin"]
[Result "1-0"]
[WhiteElo "2418"]
[BlackElo "2526"]
[TimeControl "180+2"]
[EndTime "10:37:07 PST"]
[Termination "Korona_91 won by resignation"]

1. e4 {[%clk 0:03:00.5]} 1... c5 {[%clk 0:02:59.6]} 2. Nf3 {[%clk 0:03:01.4]}
2... d6 {[%clk 0:03:00.2]} 3. Bb5+ {[%clk 0:03:01.8]} 3... Nd7 {[%clk
0:03:00.8]} 4. a4 {[%clk 0:03:02.3]} 4... Nf6 {[%clk 0:02:54.7]} 5. Nc3 {[%clk
0:03:03.3]} 5... g6 {[%clk 0:02:52.1]} 6. O-O {[%clk 0:03:00.5]} 6... Bg7 {[%clk
0:02:53]} 7. h3 {[%clk 0:02:49.7]} 7... O-O {[%clk 0:02:53.1]} 8. Re1 {[%clk
0:02:49.3]} 8... a6 {[%clk 0:02:54.1]} 9. Bf1 {[%clk 0:02:45.1]} 9... b6 {[%clk
0:02:51.9]} 10. b3 {[%clk 0:02:45.6]} 10... Bb7 {[%clk 0:02:51.8]} 11. Bd3
{[%clk 0:02:45.1]} 11... d5 {[%clk 0:02:31.9]} 12. e5 {[%clk 0:02:37.1]} 12...
Ne4 {[%clk 0:02:32]} 13. Nxe4 {[%clk 0:02:33.7]} 13... dxe4 {[%clk 0:02:27.6]}
14. Bxe4 {[%clk 0:02:35.4]} 14... Bxe4 {[%clk 0:02:15.4]} 15. Rxe4 {[%clk
0:02:37.2]} 15... e6 {[%clk 0:02:15.9]} 16. Bb2 {[%clk 0:02:37.2]} 16... Qc7
{[%clk 0:02:15.8]} 17. Qe2 {[%clk 0:02:34]} 17... Nb8 {[%clk 0:02:12.2]} 18. d4
{[%clk 0:02:06.1]} 18... cxd4 {[%clk 0:02:08]} 19. Rxd4 {[%clk 0:02:06.9]} 19...
Nc6 {[%clk 0:02:07.5]} 20. Rc4 {[%clk 0:02:07.8]} 20... Qb7 {[%clk 0:01:53.9]}
21. Qe4 {[%clk 0:01:55.6]} 21... Rac8 {[%clk 0:01:53.3]} 22. Rd1 {[%clk
0:01:54.7]} 22... Na5 {[%clk 0:01:54.7]} 23. Qxb7 {[%clk 0:01:53.9]} 23... Nxb7
{[%clk 0:01:56.6]} 24. Rxc8 {[%clk 0:01:54.8]} 24... Rxc8 {[%clk 0:01:57.3]} 25.
Rd7 {[%clk 0:01:43.9]} 25... Nc5 {[%clk 0:01:48.5]} 26. Ra7 {[%clk 0:01:42]}
26... b5 {[%clk 0:01:45.4]} 27. axb5 {[%clk 0:01:37.3]} 27... axb5 {[%clk
0:01:47.3]} 28. Bd4 {[%clk 0:01:34.7]} 28... Ne4 {[%clk 0:01:45.9]} 29. Ra2
{[%clk 0:01:34.7]} 29... b4 {[%clk 0:01:41.6]} 30. Kf1 {[%clk 0:01:27.6]} 30...
Bf8 {[%clk 0:01:42]} 31. Ke2 {[%clk 0:01:25.4]} 31... Bc5 {[%clk 0:01:43]} 32.
Ke3 {[%clk 0:01:14.9]} 32... Nc3 {[%clk 0:01:42.1]} 33. Ra5 {[%clk 0:01:09.4]}
33... Nd5+ {[%clk 0:01:39.8]} 34. Ke4 {[%clk 0:01:05.7]} 34... Be7 {[%clk
0:01:34.4]} 35. Ra2 {[%clk 0:01:02.7]} 35... h6 {[%clk 0:01:30.2]} 36. Nd2
{[%clk 0:01:02.6]} 36... g5 {[%clk 0:01:03.5]} 37. Nc4 {[%clk 0:00:52.7]} 37...
Nf4 {[%clk 0:01:03.1]} 38. Kf3 {[%clk 0:00:52]} 38... Rd8 {[%clk 0:00:57.2]} 39.
Ra7 {[%clk 0:00:44.8]} 39... Bf8 {[%clk 0:00:40.6]} 40. Be3 {[%clk 0:00:44.4]}
40... Ng6 {[%clk 0:00:36.8]} 41. Rb7 {[%clk 0:00:40.8]} 41... Rd5 {[%clk
0:00:26.8]} 42. Ke4 {[%clk 0:00:38.2]} 42... Bg7 {[%clk 0:00:18.7]} 43. Rb8+
{[%clk 0:00:38.3]} 43... Kh7 {[%clk 0:00:19.5]} 44. Rxb4 {[%clk 0:00:39.8]}
44... Nxe5 {[%clk 0:00:09.3]} 45. Nxe5 {[%clk 0:00:40.4]} 45... Rxe5+ {[%clk
0:00:10.8]} 46. Kf3 {[%clk 0:00:41.9]} 46... Rd5 {[%clk 0:00:12]} 47. c4 {[%clk
0:00:42.5]} 47... Rd3 {[%clk 0:00:13]} 48. Rb7 {[%clk 0:00:43.2]} 48... Kg6
{[%clk 0:00:13.8]} 49. c5 {[%clk 0:00:44.5]} 49... Be5 {[%clk 0:00:13.7]} 50. b4
{[%clk 0:00:44]} 50... f5 {[%clk 0:00:14.2]} 51. Rb6 {[%clk 0:00:43.8]} 51...
Kf6 {[%clk 0:00:14.7]} 52. Ke2 {[%clk 0:00:45.1]} 52... Rb3 {[%clk 0:00:12.6]}
53. c6 {[%clk 0:00:45.4]} 53... f4 {[%clk 0:00:13]} 54. Bc5 {[%clk 0:00:46.8]}
54... h5 {[%clk 0:00:12]} 55. Rb7 {[%clk 0:00:46.2]} 55... g4 {[%clk 0:00:12.9]}
56. hxg4 {[%clk 0:00:47.5]} 56... hxg4 {[%clk 0:00:14]} 57. c7 {[%clk
0:00:48.9]} 57... f3+ {[%clk 0:00:14.6]} 58. gxf3 {[%clk 0:00:49.7]} 58... gxf3+
{[%clk 0:00:16.5]} 59. Kd2 {[%clk 0:00:50.6]} 59... Rb2+ {[%clk 0:00:14.4]} 60.
Kc1 {[%clk 0:00:49.5]} 1-0

[Event "*** Titled Tuesday Blitz"]
[Site "Chess.com"]
[Date "2020.02.04"]
[Round "7"]
[White "Andro2"]
[Black "Snegokhod"]
[Result "0-1"]
[WhiteElo "2434"]
[BlackElo "2641"]
[TimeControl "180+2"]
[EndTime "10:37:09 PST"]
[Termination "Snegokhod won by resignation"]

1. e4 {[%clk 0:03:01.9]} 1... c5 {[%clk 0:02:59.5]} 2. Nf3 {[%clk 0:03:02.2]}
2... d6 {[%clk 0:03:00.2]} 3. d4 {[%clk 0:03:02.5]} 3... cxd4 {[%clk 0:03:01]}
4. Nxd4 {[%clk 0:03:04.2]} 4... Nf6 {[%clk 0:03:01.4]} 5. Nc3 {[%clk 0:03:05.6]}
5... a6 {[%clk 0:03:01.9]} 6. Qd3 {[%clk 0:03:00.4]} 6... g6 {[%clk 0:02:53.1]}
7. Bg5 {[%clk 0:02:59.1]} 7... Bg7 {[%clk 0:02:53.5]} 8. O-O-O {[%clk
0:02:55.9]} 8... O-O {[%clk 0:02:52.9]} 9. Qd2 {[%clk 0:02:56]} 9... Nc6 {[%clk
0:02:50.1]} 10. Nxc6 {[%clk 0:02:50.9]} 10... bxc6 {[%clk 0:02:50.6]} 11. e5
{[%clk 0:02:52.4]} 11... Ng4 {[%clk 0:02:29.1]} 12. exd6 {[%clk 0:02:42.8]}
12... Qxd6 {[%clk 0:02:29.2]} 13. Qxd6 {[%clk 0:02:08.4]} 13... exd6 {[%clk
0:02:28.1]} 14. Rxd6 {[%clk 0:02:09.9]} 14... Nxf2 {[%clk 0:02:24.5]} 15. Rg1
{[%clk 0:02:10.9]} 15... Bxc3 {[%clk 0:02:23.8]} 16. bxc3 {[%clk 0:02:06.4]}
16... Ne4 {[%clk 0:02:24.2]} 17. Be7 {[%clk 0:02:00.7]} 17... Nxd6 {[%clk
0:02:21.3]} 18. Bxd6 {[%clk 0:02:01.7]} 18... Re8 {[%clk 0:02:18.6]} 19. Bd3
{[%clk 0:01:59.8]} 19... Be6 {[%clk 0:02:17.4]} 20. a3 {[%clk 0:01:58.8]} 20...
Bd5 {[%clk 0:02:12.9]} 21. c4 {[%clk 0:01:56.2]} 21... Be4 {[%clk 0:02:13.5]}
22. Kd2 {[%clk 0:01:55.9]} 22... f5 {[%clk 0:02:10.4]} 23. c5 {[%clk 0:01:54.1]}
23... Bxd3 {[%clk 0:01:54.7]} 24. cxd3 {[%clk 0:01:54.5]} 24... Kf7 {[%clk
0:01:55.6]} 25. Rb1 {[%clk 0:01:53.7]} 25... Ra7 {[%clk 0:01:55.8]} 26. Rb6
{[%clk 0:01:51.5]} 26... Rc8 {[%clk 0:01:55.9]} 27. Rb1 {[%clk 0:01:39.2]} 27...
a5 {[%clk 0:01:47.7]} 28. a4 {[%clk 0:01:39.2]} 28... Rd7 {[%clk 0:01:44.3]} 29.
Rb6 {[%clk 0:01:30.4]} 29... Ke6 {[%clk 0:01:43.1]} 30. Ra6 {[%clk 0:01:29.1]}
30... Rb7 {[%clk 0:01:37.2]} 31. Rxa5 {[%clk 0:01:27.3]} 31... Rb2+ {[%clk
0:01:35.1]} 32. Kc3 {[%clk 0:01:28.2]} 32... Rxg2 {[%clk 0:01:29.8]} 33. Ra7
{[%clk 0:01:29.6]} 33... g5 {[%clk 0:01:27.1]} 34. Kd4 {[%clk 0:01:25.6]} 34...
f4 {[%clk 0:01:25]} 35. Rxh7 {[%clk 0:01:25.5]} 35... Ra2 {[%clk 0:01:22]} 36.
Rh6+ {[%clk 0:01:14.1]} 36... Kf5 {[%clk 0:01:22.3]} 37. Rh7 {[%clk 0:00:55.6]}
37... Rxa4+ {[%clk 0:01:22.7]} 38. Kc3 {[%clk 0:00:56.7]} 38... Kg4 {[%clk
0:01:19.1]} 39. Rg7 {[%clk 0:00:54.4]} 39... Ra2 {[%clk 0:01:14.8]} 40. Be7
{[%clk 0:00:50.7]} 40... Rxh2 {[%clk 0:01:13]} 41. Bxg5 {[%clk 0:00:51]} 41...
Rh5 {[%clk 0:00:56.4]} 42. Be7+ {[%clk 0:00:49]} 42... Kf3 {[%clk 0:00:45.3]}
43. Bd6 {[%clk 0:00:49.6]} 43... Rf5 {[%clk 0:00:45.2]} 44. Kd2 {[%clk
0:00:43.4]} 44... Re8 {[%clk 0:00:43.7]} 45. Rc7 {[%clk 0:00:42.4]} 45... Re2+
{[%clk 0:00:41.7]} 46. Kc3 {[%clk 0:00:42.6]} 46... Kg2 {[%clk 0:00:41]} 47.
Bxf4 {[%clk 0:00:39.5]} 47... Rxf4 {[%clk 0:00:38.6]} 48. Rxc6 {[%clk
0:00:39.9]} 48... Rf1 {[%clk 0:00:35.8]} 49. Kc4 {[%clk 0:00:33.3]} 49... Rc1+
{[%clk 0:00:35.3]} 50. Kd5 {[%clk 0:00:33.8]} 50... Kf3 {[%clk 0:00:30.6]} 51.
d4 {[%clk 0:00:33]} 51... Rd2 {[%clk 0:00:29.1]} 52. Rf6+ {[%clk 0:00:33.5]}
52... Ke3 {[%clk 0:00:29.1]} 53. Re6+ {[%clk 0:00:34.5]} 53... Kd3 {[%clk
0:00:29.9]} 54. c6 {[%clk 0:00:35.8]} 54... Kc3 {[%clk 0:00:30.6]} 55. Re4
{[%clk 0:00:35.5]} 55... Kb4 {[%clk 0:00:27.2]} 56. Kd6 {[%clk 0:00:36]} 56...
Kb5 {[%clk 0:00:28.1]} 57. d5 {[%clk 0:00:37.3]} 57... Rc5 {[%clk 0:00:26.1]}
58. Re5 {[%clk 0:00:36.3]} 58... Kb6 {[%clk 0:00:24.4]} 59. Rh5 {[%clk
0:00:32.8]} 59... Rxc6+ {[%clk 0:00:24.3]} 60. Kd7 {[%clk 0:00:28.6]} 60... Rg6
{[%clk 0:00:23.3]} 61. Re5 {[%clk 0:00:26.1]} 61... Kc5 {[%clk 0:00:19.6]} 62.
d6+ {[%clk 0:00:23.5]} 62... Kb6 {[%clk 0:00:20.6]} 63. Re6 {[%clk 0:00:22.5]}
63... Rxe6 {[%clk 0:00:21]} 64. Kxe6 {[%clk 0:00:23.6]} 64... Kc6 {[%clk
0:00:22.6]} 65. d7 {[%clk 0:00:25]} 65... Rxd7 {[%clk 0:00:22.8]} 0-1

[Event "*** Titled Tuesday Blitz"]
[Site "Chess.com"]
[Date "2020.02.04"]
[Round "7"]
[White "GMKrikor"]
[Black "Rodchenkov_Vitalij"]
[Result "1/2-1/2"]
[WhiteElo "2824"]
[BlackElo "2604"]
[TimeControl "180+2"]
[EndTime "10:37:21 PST"]
[Termination "Game drawn by repetition"]

1. Nf3 {[%clk 0:03:01.9]} 1... d5 {[%clk 0:02:58.8]} 2. c4 {[%clk 0:03:02.7]}
2... c6 {[%clk 0:02:59]} 3. e3 {[%clk 0:03:00.9]} 3... e6 {[%clk 0:02:58.3]} 4.
b3 {[%clk 0:02:57.8]} 4... f5 {[%clk 0:02:58.7]} 5. Bb2 {[%clk 0:02:58.7]} 5...
Nf6 {[%clk 0:02:59.7]} 6. d4 {[%clk 0:02:42.1]} 6... Bd6 {[%clk 0:02:58.4]} 7.
Bd3 {[%clk 0:02:35.3]} 7... O-O {[%clk 0:02:58.6]} 8. O-O {[%clk 0:02:36.9]}
8... Nbd7 {[%clk 0:02:59.1]} 9. Ba3 {[%clk 0:02:23.9]} 9... Qe7 {[%clk
0:02:55.7]} 10. Bxd6 {[%clk 0:02:17.8]} 10... Qxd6 {[%clk 0:02:56.4]} 11. Nc3
{[%clk 0:02:19.4]} 11... Ne4 {[%clk 0:02:54.6]} 12. Qc2 {[%clk 0:02:16.9]} 12...
b6 {[%clk 0:02:52.3]} 13. Qb2 {[%clk 0:02:10.6]} 13... Bb7 {[%clk 0:02:51.1]}
14. Ne2 {[%clk 0:02:10]} 14... Rac8 {[%clk 0:02:45.4]} 15. Ne5 {[%clk
0:02:08.3]} 15... Nxe5 {[%clk 0:02:43.9]} 16. dxe5 {[%clk 0:02:09.3]} 16... Qe7
{[%clk 0:02:44]} 17. Rad1 {[%clk 0:01:48.8]} 17... c5 {[%clk 0:02:39.1]} 18. f3
{[%clk 0:01:43.5]} 18... Ng5 {[%clk 0:02:38.9]} 19. Nf4 {[%clk 0:01:40]} 19...
Rcd8 {[%clk 0:02:32.8]} 20. Be2 {[%clk 0:01:15.1]} 20... Nf7 {[%clk 0:02:08.5]}
21. Rd2 {[%clk 0:01:12.5]} 21... d4 {[%clk 0:01:37.5]} 22. exd4 {[%clk
0:01:11.8]} 22... cxd4 {[%clk 0:01:38.6]} 23. Rxd4 {[%clk 0:00:52.5]} 23... g5
{[%clk 0:01:18.2]} 24. Rxd8 {[%clk 0:00:41.4]} 24... Rxd8 {[%clk 0:01:17.9]} 25.
Nd3 {[%clk 0:00:35.9]} 25... f4 {[%clk 0:01:18.2]} 26. Rd1 {[%clk 0:00:31.1]}
26... Nh6 {[%clk 0:01:19]} 27. Nf2 {[%clk 0:00:31.3]} 27... Nf5 {[%clk
0:01:18.8]} 28. Rxd8+ {[%clk 0:00:25]} 28... Qxd8 {[%clk 0:01:19.6]} 29. Bd3
{[%clk 0:00:26.6]} 29... Ne3 {[%clk 0:01:17.3]} 30. Qc3 {[%clk 0:00:23.5]} 30...
h5 {[%clk 0:01:14]} 31. h3 {[%clk 0:00:21.9]} 31... Kg7 {[%clk 0:01:12.8]} 32.
Be2 {[%clk 0:00:17.7]} 32... Qd7 {[%clk 0:01:01]} 33. Qd3 {[%clk 0:00:18.5]}
33... Qc7 {[%clk 0:00:56.4]} 34. Qd4 {[%clk 0:00:17.3]} 34... Nf5 {[%clk
0:00:56.5]} 35. Qc3 {[%clk 0:00:16.8]} 35... a5 {[%clk 0:00:56.4]} 36. Bd3
{[%clk 0:00:13.9]} 36... Ne3 {[%clk 0:00:54.2]} 37. Qd4 {[%clk 0:00:15]} 37...
h4 {[%clk 0:00:35.7]} 38. Be4 {[%clk 0:00:15]} 38... Bc8 {[%clk 0:00:34]} 39.
Nd3 {[%clk 0:00:13.7]} 39... Bd7 {[%clk 0:00:32.8]} 40. Nf2 {[%clk 0:00:11.8]}
40... Be8 {[%clk 0:00:31.9]} 41. Bd3 {[%clk 0:00:12.6]} 41... Bc6 {[%clk
0:00:32.1]} 42. Ne4 {[%clk 0:00:14.1]} 42... Bxe4 {[%clk 0:00:33]} 43. Qxe4
{[%clk 0:00:16]} 43... Qc5 {[%clk 0:00:29.8]} 44. Kh2 {[%clk 0:00:13.5]} 44...
Kf8 {[%clk 0:00:26.4]} 45. Qa8+ {[%clk 0:00:13.8]} 45... Kf7 {[%clk 0:00:26.9]}
46. Qb7+ {[%clk 0:00:14.6]} 46... Kf8 {[%clk 0:00:27.5]} 47. Qb8+ {[%clk
0:00:11.6]} 47... Kf7 {[%clk 0:00:27.3]} 48. Qb7+ {[%clk 0:00:12.7]} 48... Kf8
{[%clk 0:00:28]} 49. Qe4 {[%clk 0:00:14.6]} 49... a4 {[%clk 0:00:21]} 50. bxa4
{[%clk 0:00:14.5]} 50... Qb4 {[%clk 0:00:21.5]} 51. Qa8+ {[%clk 0:00:13.7]}
51... Ke7 {[%clk 0:00:22.2]} 52. Qb7+ {[%clk 0:00:14.9]} 52... Kd8 {[%clk
0:00:23.6]} 53. Qb8+ {[%clk 0:00:14.3]} 53... Kd7 {[%clk 0:00:24.7]} 54. Be4
{[%clk 0:00:10.3]} 54... Nf1+ {[%clk 0:00:24.8]} 55. Kg1 {[%clk 0:00:10.4]}
55... Ne3 {[%clk 0:00:25.8]} 56. Qb7+ {[%clk 0:00:11.2]} 56... Kd8 {[%clk
0:00:26.4]} 57. Qb8+ {[%clk 0:00:12.6]} 57... Kd7 {[%clk 0:00:27.3]} 58. Qb7+
{[%clk 0:00:06.5]} 58... Kd8 {[%clk 0:00:28.2]} 59. Kh2 {[%clk 0:00:08.1]} 59...
Nf1+ {[%clk 0:00:28.6]} 60. Kg1 {[%clk 0:00:09.4]} 60... Ne3 {[%clk 0:00:30.3]}
1/2-1/2

[Event "*** Titled Tuesday Blitz"]
[Site "Chess.com"]
[Date "2020.02.04"]
[Round "7"]
[White "GHANDEEVAM2003"]
[Black "Lubov_Gordyk"]
[Result "1/2-1/2"]
[WhiteElo "2921"]
[BlackElo "2638"]
[TimeControl "180+2"]
[EndTime "10:37:22 PST"]
[Termination "Game drawn by repetition"]

1. e4 {[%clk 0:03:01.9]} 1... g6 {[%clk 0:03:00.7]} 2. d4 {[%clk 0:03:02.4]}
2... Bg7 {[%clk 0:03:01.8]} 3. Nf3 {[%clk 0:03:03.6]} 3... d6 {[%clk 0:03:02.9]}
4. Bc4 {[%clk 0:03:05]} 4... e6 {[%clk 0:03:03.4]} 5. h4 {[%clk 0:03:04.9]} 5...
h6 {[%clk 0:03:03.1]} 6. Qe2 {[%clk 0:03:06.2]} 6... Ne7 {[%clk 0:03:03.9]} 7.
c3 {[%clk 0:03:04.9]} 7... a6 {[%clk 0:03:05.1]} 8. a4 {[%clk 0:03:05.1]} 8...
b6 {[%clk 0:03:06.1]} 9. Bf4 {[%clk 0:03:04.7]} 9... Bb7 {[%clk 0:03:06.9]} 10.
Nbd2 {[%clk 0:03:06.2]} 10... Nd7 {[%clk 0:03:07.7]} 11. Bd3 {[%clk 0:03:05.7]}
11... e5 {[%clk 0:03:07.7]} 12. Be3 {[%clk 0:03:05.7]} 12... Nc6 {[%clk
0:03:08.1]} 13. d5 {[%clk 0:03:03.7]} 13... Ne7 {[%clk 0:03:07.3]} 14. h5 {[%clk
0:03:03.3]} 14... g5 {[%clk 0:03:06.8]} 15. b4 {[%clk 0:03:04.3]} 15... a5
{[%clk 0:03:03.7]} 16. Bb5 {[%clk 0:03:02.5]} 16... O-O {[%clk 0:03:00.6]} 17.
g4 {[%clk 0:02:59.2]} 17... axb4 {[%clk 0:03:00.2]} 18. cxb4 {[%clk 0:03:01.1]}
18... c6 {[%clk 0:03:01.1]} 19. dxc6 {[%clk 0:03:00.9]} 19... Nxc6 {[%clk
0:03:02]} 20. Nc4 {[%clk 0:02:56.6]} 20... d5 {[%clk 0:02:58]} 21. exd5 {[%clk
0:02:44.2]} 21... Nxb4 {[%clk 0:02:49]} 22. Bxd7 {[%clk 0:02:45.4]} 22... Qxd7
{[%clk 0:02:14.8]} 23. Nxb6 {[%clk 0:02:45]} 23... Qxg4 {[%clk 0:02:15.4]} 24.
Rg1 {[%clk 0:02:29.3]} 24... Qe4 {[%clk 0:02:12.3]} 25. Nd2 {[%clk 0:01:50.9]}
25... Qf5 {[%clk 0:01:56]} 26. Nxa8 {[%clk 0:01:39.9]} 26... Rxa8 {[%clk
0:01:32.8]} 27. Rb1 {[%clk 0:01:22.6]} 27... Nc2+ {[%clk 0:01:21.3]} 28. Kd1
{[%clk 0:01:21.5]} 28... Bxd5 {[%clk 0:01:21.7]} 29. Qg4 {[%clk 0:01:14.4]}
29... Nxe3+ {[%clk 0:01:18.7]} 30. fxe3 {[%clk 0:01:16.3]} 30... Qd3 {[%clk
0:01:19.9]} 31. Qe2 {[%clk 0:01:11.9]} 31... Qa3 {[%clk 0:01:18.1]} 32. Qb5
{[%clk 0:01:02.8]} 32... Qxe3 {[%clk 0:01:09.8]} 33. Re1 {[%clk 0:01:03.7]}
33... Bf3+ {[%clk 0:01:10]} 34. Nxf3 {[%clk 0:00:59.1]} 34... Qxf3+ {[%clk
0:01:11.1]} 35. Re2 {[%clk 0:00:54.5]} 35... Rd8+ {[%clk 0:01:01.3]} 36. Kc1
{[%clk 0:00:51.1]} 36... e4 {[%clk 0:00:58]} 37. Qc4 {[%clk 0:00:42]} 37... Qf4+
{[%clk 0:00:42.6]} 38. Kc2 {[%clk 0:00:40.5]} 38... Rd3 {[%clk 0:00:34.5]} 39.
Rb3 {[%clk 0:00:23.3]} 39... Rxb3 {[%clk 0:00:18.8]} 40. Kxb3 {[%clk 0:00:25.2]}
40... Qb8+ {[%clk 0:00:17.5]} 41. Ka2 {[%clk 0:00:21]} 41... e3 {[%clk
0:00:16.2]} 42. Qb3 {[%clk 0:00:20.8]} 42... Qe5 {[%clk 0:00:16.1]} 43. Qxe3
{[%clk 0:00:17.2]} 43... Qa1+ {[%clk 0:00:15.8]} 44. Kb3 {[%clk 0:00:18.7]}
44... Qb1+ {[%clk 0:00:15.8]} 45. Kc4 {[%clk 0:00:18.9]} 45... Bf6 {[%clk
0:00:12.7]} 46. a5 {[%clk 0:00:16.8]} 46... Qb7 {[%clk 0:00:12.8]} 47. Qb6
{[%clk 0:00:16.4]} 47... Qc8+ {[%clk 0:00:12.5]} 48. Kb3 {[%clk 0:00:16.8]}
48... Qd7 {[%clk 0:00:12.5]} 49. Kc4 {[%clk 0:00:09.5]} 49... Kg7 {[%clk
0:00:12.8]} 50. a6 {[%clk 0:00:08.7]} 50... Qa4+ {[%clk 0:00:13.6]} 51. Kd3
{[%clk 0:00:09.6]} 51... Qa3+ {[%clk 0:00:14.3]} 52. Ke4 {[%clk 0:00:10.2]}
52... Qa4+ {[%clk 0:00:15.1]} 53. Kd5 {[%clk 0:00:10.4]} 53... Qd7+ {[%clk
0:00:13.4]} 54. Kc4 {[%clk 0:00:10.1]} 54... Qa4+ {[%clk 0:00:14.1]} 55. Kd3
{[%clk 0:00:10]} 55... Qa3+ {[%clk 0:00:15.3]} 56. Kc2 {[%clk 0:00:09.5]} 56...
Qa2+ {[%clk 0:00:15.8]} 57. Kd3 {[%clk 0:00:09.1]} 57... Qa3+ {[%clk 0:00:16.6]}
1/2-1/2

[Event "*** Titled Tuesday Blitz"]
[Site "Chess.com"]
[Date "2020.02.04"]
[Round "7"]
[White "ChessPromotionAlex"]
[Black "SabinaFoisor"]
[Result "0-1"]
[WhiteElo "2513"]
[BlackElo "2390"]
[TimeControl "180+2"]
[EndTime "10:37:24 PST"]
[Termination "SabinaFoisor won by resignation"]

1. e4 {[%clk 0:03:01.9]} 1... e5 {[%clk 0:03:00.5]} 2. Nf3 {[%clk 0:03:02.9]}
2... Nc6 {[%clk 0:03:01.2]} 3. Bb5 {[%clk 0:03:03.1]} 3... a6 {[%clk 0:03:02.1]}
4. Ba4 {[%clk 0:03:03.7]} 4... Nf6 {[%clk 0:03:03.2]} 5. O-O {[%clk 0:03:05]}
5... Be7 {[%clk 0:03:04.5]} 6. Re1 {[%clk 0:03:05.4]} 6... b5 {[%clk 0:03:05.5]}
7. Bb3 {[%clk 0:03:06.8]} 7... O-O {[%clk 0:03:07.1]} 8. a4 {[%clk 0:03:04.4]}
8... Rb8 {[%clk 0:03:07.4]} 9. axb5 {[%clk 0:03:01.3]} 9... axb5 {[%clk
0:03:09.3]} 10. c3 {[%clk 0:02:42.9]} 10... d6 {[%clk 0:02:58.4]} 11. h3 {[%clk
0:02:42]} 11... Bb7 {[%clk 0:02:55.5]} 12. d4 {[%clk 0:02:30.5]} 12... exd4
{[%clk 0:02:47.7]} 13. cxd4 {[%clk 0:02:30.2]} 13... Nb4 {[%clk 0:02:48.3]} 14.
Nc3 {[%clk 0:02:20]} 14... c5 {[%clk 0:02:45.5]} 15. e5 {[%clk 0:01:55.2]} 15...
dxe5 {[%clk 0:02:41.5]} 16. dxe5 {[%clk 0:01:55.7]} 16... Qxd1 {[%clk
0:02:29.4]} 17. Rxd1 {[%clk 0:01:55.9]} 17... Ne8 {[%clk 0:01:11.8]} 18. Rd7
{[%clk 0:01:05.7]} 18... Bxf3 {[%clk 0:00:48.1]} 19. gxf3 {[%clk 0:00:54.2]}
19... c4 {[%clk 0:00:46]} 20. Bxc4 {[%clk 0:00:48.3]} 20... bxc4 {[%clk
0:00:46.3]} 21. Rxe7 {[%clk 0:00:49]} 21... Nc6 {[%clk 0:00:44.8]} 22. Nd5
{[%clk 0:00:24.4]} 22... Nxe7 {[%clk 0:00:43.5]} 23. Nxe7+ {[%clk 0:00:24.2]}
23... Kh8 {[%clk 0:00:45.4]} 24. Ra4 {[%clk 0:00:24.8]} 24... c3 {[%clk
0:00:40.8]} 25. b4 {[%clk 0:00:21]} 25... Nc7 {[%clk 0:00:37.9]} 26. Ra3 {[%clk
0:00:17.6]} 26... Nb5 {[%clk 0:00:37.5]} 27. Ra5 {[%clk 0:00:17.4]} 27... Nd4
{[%clk 0:00:37.9]} 28. Be3 {[%clk 0:00:18.4]} 28... Rxb4 {[%clk 0:00:26.9]} 29.
Rc5 {[%clk 0:00:14.7]} 29... Nxf3+ {[%clk 0:00:15.2]} 30. Kg2 {[%clk 0:00:15.1]}
30... Nh4+ {[%clk 0:00:16.5]} 31. Kg3 {[%clk 0:00:13]} 31... Ng6 {[%clk
0:00:15.9]} 32. Nd5 {[%clk 0:00:11.9]} 32... Re4 {[%clk 0:00:14.9]} 33. f4
{[%clk 0:00:10.4]} 33... Ra4 {[%clk 0:00:10.6]} 34. Nxc3 {[%clk 0:00:09.9]}
34... Ra3 {[%clk 0:00:11]} 35. Kf3 {[%clk 0:00:11]} 35... Ne7 {[%clk 0:00:10.9]}
36. Ne4 {[%clk 0:00:10.5]} 36... Nf5 {[%clk 0:00:11.6]} 37. Rc3 {[%clk
0:00:11.5]} 37... Rxc3 {[%clk 0:00:12]} 38. Nxc3 {[%clk 0:00:13.4]} 38... Rd8
{[%clk 0:00:13]} 39. Ke4 {[%clk 0:00:12.6]} 39... Ng3+ {[%clk 0:00:14]} 40. Kf3
{[%clk 0:00:13.3]} 40... Nf5 {[%clk 0:00:15.9]} 41. Ke4 {[%clk 0:00:14.6]} 41...
g6 {[%clk 0:00:17.5]} 42. Bf2 {[%clk 0:00:14.2]} 42... Kg7 {[%clk 0:00:18.2]}
43. Nd5 {[%clk 0:00:13.8]} 43... Ra8 {[%clk 0:00:18]} 44. Bc5 {[%clk 0:00:13.3]}
44... Ra4+ {[%clk 0:00:18.4]} 45. Kf3 {[%clk 0:00:14.6]} 45... h5 {[%clk
0:00:17.7]} 46. Ne7 {[%clk 0:00:13.1]} 46... Nxe7 {[%clk 0:00:17.5]} 47. Bxe7
{[%clk 0:00:15]} 47... Rc4 {[%clk 0:00:17.5]} 48. Kg3 {[%clk 0:00:14.6]} 48...
Rc3+ {[%clk 0:00:17.5]} 49. Kg2 {[%clk 0:00:15.7]} 49... Rc7 {[%clk 0:00:17.4]}
50. Bf6+ {[%clk 0:00:14]} 50... Kf8 {[%clk 0:00:18.1]} 51. Kg3 {[%clk
0:00:15.1]} 51... Ke8 {[%clk 0:00:18.2]} 52. f5 {[%clk 0:00:13.9]} 52... Rc4
{[%clk 0:00:16.6]} 53. fxg6 {[%clk 0:00:13.7]} 53... fxg6 {[%clk 0:00:18.5]} 54.
e6 {[%clk 0:00:12.9]} 54... Rc6 {[%clk 0:00:19.2]} 55. Kf4 {[%clk 0:00:12.3]}
55... Rxe6 {[%clk 0:00:19.6]} 56. Bg5 {[%clk 0:00:13.7]} 56... Kf7 {[%clk
0:00:21.4]} 57. h4 {[%clk 0:00:14.8]} 57... Ra6 {[%clk 0:00:22.8]} 58. Kf3
{[%clk 0:00:15.7]} 58... Ra4 {[%clk 0:00:23]} 59. Kg3 {[%clk 0:00:16.6]} 59...
Ke6 {[%clk 0:00:24.9]} 60. Kf3 {[%clk 0:00:16.6]} 60... Kf5 {[%clk 0:00:26.8]}
61. Bd8 {[%clk 0:00:17.2]} 61... Rg4 {[%clk 0:00:28.7]} 62. Be7 {[%clk
0:00:17.4]} 62... Rd4 {[%clk 0:00:30.5]} 63. Kg3 {[%clk 0:00:17.6]} 63... Rd3+
{[%clk 0:00:31.2]} 64. Kg2 {[%clk 0:00:18.9]} 64... Kg4 {[%clk 0:00:33.1]} 65.
Bg5 {[%clk 0:00:19.2]} 65... Rh3 {[%clk 0:00:35]} 0-1